fUST/lending_fUST_20250626
["ID","MTS","AMOUNT","RATE_DAILY","PERIOD"]
[367838126,1750941063810,-1034.46,0.00018356,2]
[367838127,1750941063819,-510.97,0.00018356,2]
[367838128,1750941063828,-685.54,0.00018356,2]
[367838129,1750941063838,-594.59,0.00018356,2]
[367838130,1750941063847,-501.72,0.00018356,2]
[367838131,1750941063857,-743.6,0.00018356,2]
[367838132,1750941063868,-2173.59,0.00018356,2]
[367838133,1750941063878,-2150.76,0.00018356,2]
[367838134,1750941063887,-603.43,0.00018356,2]
[367838135,1750941063897,-460.0,0.00018356,2]
[367838136,1750941063907,-460.0,0.00018356,2]
[367838137,1750941063918,-460.0,0.00018356,2]
[367838138,1750941063928,-594.3,0.00018356,2]
[367838139,1750941063938,-1345.47,0.00018356,2]
[367838140,1750941063950,-721.39,0.00018356,2]
[367838141,1750941063960,-460.0,0.00018356,2]
[367838142,1750941063970,-460.0,0.00018356,2]
[367838143,1750941063980,-1390.16,0.00018356,2]
[367838144,1750941063989,-885.25,0.00018356,2]
[367838145,1750941063999,-460.0,0.00018356,2]
[367838146,1750941064010,-460.0,0.00018356,2]
[367838147,1750941064019,-460.0,0.00018356,2]
[367838148,1750941064029,-460.0,0.00018356,2]
[367838149,1750941064038,-460.0,0.00018356,2]
[367838150,1750941064047,-460.0,0.00018356,2]
[367838151,1750941064056,-2659.29,0.00018356,2]
[367838152,1750941064066,-460.0,0.00018356,2]
[367838153,1750941064075,-460.0,0.00018356,2]
[367838154,1750941064085,-2051.31,0.00018356,2]
[367838155,1750941064094,-581.91,0.00018356,2]
[367838156,1750941064104,-460.0,0.00018356,2]
[367838157,1750941064114,-479.83,0.00018356,2]
[367838158,1750941064123,-569.65,0.00018356,2]
[367838159,1750941064132,-460.0,0.00018356,2]
[367838160,1750941064142,-1007.27257125,0.00018421,2]
[367838161,1750941064151,-1000.0,0.00018421,2]
[367838162,1750941064161,-1000.0,0.00018421,2]
[367838163,1750941064171,-1000.0,0.00018421,2]
[367838164,1750941064180,-208.0989754,0.00018421,2]
[367838165,1750941064189,-500.0,0.00018421,2]
[367838166,1750941064199,-1951.82988269,0.00018433,2]
[367838167,1750941064209,-2490.0,0.000185,2]
[367838168,1750941064218,-6544.25534241,0.0001853,2]
[367838169,1750941064227,-836.92866116,0.00018532,2]
[367838170,1750941064236,-160.0,0.00018532,2]
[367838171,1750941064247,-230.24506774,0.00018532,2]
[367838172,1750941064257,-160.0,0.00018532,2]
[367838173,1750941064266,-160.0,0.00018532,2]
[367838174,1750941064275,-160.0,0.00018532,2]
[367838175,1750941064285,-846.92323443,0.00018532,2]
[367838176,1750941064294,-425.22527846,0.00018532,2]
[367838177,1750941064305,-213.72380786,0.00018532,2]
[367838178,1750941064314,-160.0,0.00018532,2]
[367838179,1750941064325,-160.0,0.00018532,2]
[367838180,1750941064334,-160.0,0.00018532,2]
[367838181,1750941064343,-160.0,0.00018532,2]
[367838182,1750941064352,-160.0,0.00018532,2]
[367838183,1750941064362,-12560.17507789,0.00018532,2]
[367838184,1750941064371,-524.25751634,0.00018532,2]
[367838185,1750941064380,-2764.78833449,0.00018555,2]
[367838186,1750941064391,-151.0,0.000186,2]
[367838187,1750941064400,-500.0,0.00018621,2]
[367838188,1750941064409,-500.0,0.00018621,2]
[367838189,1750941064418,-501.01948852,0.00018621,2]
[367838190,1750941064427,-245.6856227,0.00018621,2]
[367838191,1750941064436,-501.07557052,0.00018621,2]
[367838192,1750941064445,-1000.0,0.00018621,2]
[367838193,1750941064457,-460.0,0.0001863,2]
[367838194,1750941064466,-460.0,0.0001863,2]
[367838195,1750941064475,-460.0,0.0001863,2]
[367838196,1750941064485,-460.0,0.0001863,2]
[367838197,1750941064494,-460.0,0.0001863,2]
[367838198,1750941064504,-460.0,0.0001863,2]
[367838199,1750941064516,-209.01102194,0.0001863,2]
[367838200,1750941064527,-460.0,0.0001863,2]
[367838201,1750941064537,-460.0,0.0001863,2]
[367838202,1750941064547,-460.0,0.0001863,2]
[367838203,1750941064557,-460.0,0.0001863,2]
[367838204,1750941064567,-460.0,0.0001863,2]
[367838205,1750941064577,-460.0,0.0001863,2]
[367838206,1750941064587,-473.28,0.0001863,2]
[367838207,1750941064597,-460.0,0.0001863,2]
[367838208,1750941064606,-460.0,0.0001863,2]
[367838209,1750941064616,-460.0,0.0001863,2]
[367838210,1750941064625,-888.46,0.0001863,2]
[367838211,1750941064637,-791.24,0.0001863,2]
[367838212,1750941064648,-460.0,0.0001863,2]
[367838213,1750941064658,-460.0,0.0001863,2]
[367838214,1750941064668,-460.0,0.0001863,2]
[367838215,1750941064677,-807.51,0.0001863,2]
[367838216,1750941064687,-460.0,0.0001863,2]
[367838217,1750941064696,-460.0,0.0001863,2]
[367838218,1750941064712,-503.24,0.0001863,2]
[367838219,1750941064722,-284.51,0.0001863,2]
[367838220,1750941064731,-631.7,0.0001863,2]
[367838221,1750941064741,-460.0,0.0001863,2]
[367838222,1750941064750,-460.0,0.0001863,2]
[367838223,1750941064759,-742.62,0.0001863,2]
[367838224,1750941064770,-460.0,0.0001863,2]
[367838225,1750941064779,-460.0,0.0001863,2]
[367838226,1750941064789,-460.0,0.0001863,2]
[367838227,1750941064799,-471.26,0.0001863,2]
[367838228,1750941064809,-460.0,0.0001863,2]
[367838229,1750941064818,-460.0,0.0001863,2]
[367838230,1750941064827,-460.0,0.0001863,2]
[367838231,1750941064836,-460.0,0.0001863,2]
[367838232,1750941064846,-460.0,0.0001863,2]
[367838233,1750941064855,-460.0,0.0001863,2]
[367838234,1750941064864,-460.0,0.0001863,2]
[367838235,1750941064874,-803.0,0.0001863,2]
[367838236,1750941064883,-460.0,0.0001863,2]
[367838237,1750941064892,-460.0,0.0001863,2]
[367838238,1750941064901,-460.0,0.0001863,2]
[367838239,1750941064912,-566.19,0.0001863,2]
[367838240,1750941064922,-460.0,0.0001863,2]
[367838241,1750941064932,-277.41587772,0.0001863,2]
[367838242,1750941064941,-531.21,0.0001863,2]
[367838243,1750941064954,-460.0,0.0001863,2]
[367838244,1750941064963,-586.58,0.0001863,2]
[367838245,1750941064973,-460.0,0.0001863,2]
[367838246,1750941064982,-460.0,0.0001863,2]
[367838247,1750941064992,-460.0,0.0001863,2]
[367838248,1750941065002,-460.0,0.0001863,2]
[367838249,1750941065012,-460.0,0.0001863,2]
[367838250,1750941065022,-1446.03,0.0001863,2]
[367838251,1750941065032,-1888.57,0.0001863,2]
[367838252,1750941065041,-460.0,0.0001863,2]
[367838253,1750941065050,-460.0,0.0001863,2]
[367838254,1750941065190,-513.72,0.0001863,2]
[367838255,1750941065202,-2010.83,0.0001863,2]
[367838256,1750941065211,-581.00028452,0.0001863,2]
[367838257,1750941065221,-460.0,0.0001863,2]
[367838258,1750941065230,-460.0,0.0001863,2]
[367838259,1750941065239,-460.0,0.0001863,2]
[367838260,1750941065248,-706.02,0.0001863,2]
[367838261,1750941065257,-460.0,0.0001863,2]
[367838262,1750941065266,-460.0,0.0001863,2]
[367838263,1750941065275,-947.82,0.0001863,2]
[367838264,1750941065286,-686.64,0.0001863,2]
[367838265,1750941065296,-528.25,0.0001863,2]
[367838266,1750941065305,-460.0,0.0001863,2]
[367838267,1750941065314,-460.0,0.0001863,2]
[367838268,1750941065324,-630.9,0.0001863,2]
[367838269,1750941065334,-4731.44,0.0001863,2]
[367838270,1750941065343,-464.51,0.0001863,2]
[367838271,1750941065352,-719.52,0.0001863,2]
[367838272,1750941065362,-460.0,0.0001863,2]
[367838273,1750941065371,-806.15,0.0001863,2]
[367838274,1750941065380,-548.98,0.0001863,2]
[367838275,1750941065389,-460.0,0.0001863,2]
[367838276,1750941065399,-460.0,0.0001863,2]
[367838277,1750941065408,-460.0,0.0001863,2]
[367838278,1750941065418,-5800.83,0.0001863,2]
[367838279,1750941065427,-692.44,0.0001863,2]
[367838280,1750941065437,-866.92,0.0001863,2]
[367838281,1750941065446,-460.0,0.0001863,2]
[367838282,1750941065458,-460.0,0.0001863,2]
[367838283,1750941065468,-2909.6,0.0001863,2]
[367838284,1750941065477,-517.95,0.0001863,2]
[367838285,1750941065487,-2686.11,0.0001863,2]
[367838286,1750941065496,-1363.41,0.0001863,2]
[367838287,1750941065505,-3716.07,0.0001863,2]
[367838288,1750941065515,-1046.42,0.0001863,2]
[367838289,1750941065525,-532.34,0.0001863,2]
[367838290,1750941065534,-790.12,0.0001863,2]
[367838291,1750941065544,-1720.1,0.0001863,2]
[367838292,1750941065553,-607.72,0.0001863,2]
[367838293,1750941065563,-460.0,0.0001863,2]
[367838294,1750941065573,-738.59,0.0001863,2]
[367838295,1750941065582,-683.98,0.0001863,2]
[367838296,1750941065592,-460.0,0.0001863,2]
[367838297,1750941065601,-460.0,0.0001863,2]
[367838298,1750941065611,-460.0,0.0001863,2]
[367838299,1750941065620,-460.0,0.0001863,2]
[367838300,1750941065631,-533.75,0.0001863,2]
[367838301,1750941065644,-1868.49,0.0001863,2]
[367838302,1750941065654,-1752.99,0.0001863,2]
[367838303,1750941065663,-761.74,0.0001863,2]
[367838304,1750941065674,-620.54,0.0001863,2]
[367838305,1750941065684,-460.0,0.0001863,2]
[367838306,1750941065693,-570.25,0.0001863,2]
[367838307,1750941065706,-460.0,0.0001863,2]
[367838308,1750941065718,-460.0,0.0001863,2]
[367838309,1750941065727,-1048.74,0.0001863,2]
[367838310,1750941065737,-890.8,0.0001863,2]
[367838311,1750941065748,-2024.11,0.0001863,2]
[367838312,1750941065758,-641.16,0.0001863,2]
[367838313,1750941065769,-539.29471919,0.0001863,2]
[367838314,1750941065779,-753.25,0.0001863,2]
[367838315,1750941065789,-560.58,0.0001863,2]
[367838316,1750941065798,-1034.46,0.0001863,2]
[367838317,1750941065808,-510.97,0.0001863,2]
[367838318,1750941065817,-685.54,0.0001863,2]
[367838319,1750941065831,-501.72,0.0001863,2]
[367838320,1750941065840,-594.59,0.0001863,2]
[367838321,1750941065850,-743.6,0.0001863,2]
[367838322,1750941065859,-2173.59,0.0001863,2]
[367838323,1750941065869,-2150.76,0.0001863,2]
[367838324,1750941065878,-603.43,0.0001863,2]
[367838325,1750941065888,-460.0,0.0001863,2]
[367838326,1750941065897,-213.64135167,0.0001863,2]
[367838327,1750941065908,-460.0,0.0001863,2]
[367838328,1750941065917,-594.3,0.0001863,2]
[367838329,1750941065927,-1345.47,0.0001863,2]
[367838330,1750941065937,-721.39,0.0001863,2]
[367838331,1750941065947,-460.0,0.0001863,2]
[367838332,1750941065964,-460.0,0.0001863,2]
[367838333,1750941065975,-1390.16,0.0001863,2]
[367838334,1750941065984,-885.25,0.0001863,2]
[367838335,1750941065994,-460.0,0.0001863,2]
[367838336,1750941066005,-460.0,0.0001863,2]
[367838337,1750941066015,-207.42462296,0.0001863,2]
[367838338,1750941066025,-460.0,0.0001863,2]
[367838339,1750941066034,-460.0,0.0001863,2]
[367838340,1750941066044,-2659.29,0.0001863,2]
[367838341,1750941066054,-460.0,0.0001863,2]
[367838342,1750941066063,-460.0,0.0001863,2]
[367838343,1750941066072,-2051.31,0.0001863,2]
[367838344,1750941066082,-581.91,0.0001863,2]
[367838345,1750941066092,-479.83,0.0001863,2]
[367838346,1750941066101,-569.65,0.0001863,2]
[367838347,1750941066110,-460.0,0.0001863,2]
[367838348,1750941066120,-298.58513118,0.00018668,2]
[367838349,1750941066129,-1500.0,0.00018668,2]
[367838350,1750941066139,-1500.0,0.00018668,2]
[367838351,1750941066148,-1500.0,0.00018668,2]
[367838352,1750941066158,-504.53964016,0.00018668,2]
[367838353,1750941066167,-2764.78833449,0.00018831,2]
[367838354,1750941066176,-1500.0,0.00018848,2]
[367838355,1750941066185,-1500.0,0.00018848,2]
[367838356,1750941066195,-1004.70859062,0.00018848,2]
[367838357,1750941066210,-151.0,0.000189,2]
[367838358,1750941066219,-499.91,0.00018904,2]
[367838359,1750941066228,-328.10923955,0.00018904,2]
[367838360,1750941066238,-285.68,0.00018904,2]
[367838361,1750941066247,-460.0,0.00018904,2]
[367838362,1750941066257,-460.0,0.00018904,2]
[367838363,1750941066266,-460.0,0.00018904,2]
[367838364,1750941066276,-460.0,0.00018904,2]
[367838365,1750941066285,-460.0,0.00018904,2]
[367838366,1750941066295,-425.148073,0.00018904,2]
[367838367,1750941066304,-301.79861802,0.00018904,2]
[367838368,1750941066314,-460.0,0.00018904,2]
[367838369,1750941066323,-460.0,0.00018904,2]
[367838370,1750941066333,-473.28,0.00018904,2]
[367838371,1750941066342,-460.0,0.00018904,2]
[367838372,1750941066351,-460.0,0.00018904,2]
[367838373,1750941066360,-524.0076965,0.00018904,2]
[367838374,1750941066370,-888.46,0.00018904,2]
[367838375,1750941066379,-791.24,0.00018904,2]
[367838376,1750941066389,-460.0,0.00018904,2]
[367838377,1750941066399,-461.36235608,0.00018904,2]
[367838378,1750941066407,-460.0,0.00018904,2]
[367838379,1750941066417,-807.51,0.00018904,2]
[367838380,1750941066426,-460.0,0.00018904,2]
[367838381,1750941066435,-460.0,0.00018904,2]
[367838382,1750941066445,-503.24,0.00018904,2]
[367838383,1750941066458,-631.7,0.00018904,2]
[367838384,1750941066468,-460.0,0.00018904,2]
[367838385,1750941066478,-460.0,0.00018904,2]
[367838386,1750941066487,-742.62,0.00018904,2]
[367838387,1750941066496,-460.0,0.00018904,2]
[367838388,1750941066505,-460.0,0.00018904,2]
[367838389,1750941066515,-460.0,0.00018904,2]
[367838390,1750941066523,-471.26,0.00018904,2]
[367838391,1750941066532,-460.0,0.00018904,2]
[367838392,1750941066541,-460.0,0.00018904,2]
[367838393,1750941066550,-460.0,0.00018904,2]
[367838394,1750941066559,-460.0,0.00018904,2]
[367838395,1750941066569,-411.43174198,0.00018904,2]
[367838396,1750941066578,-460.0,0.00018904,2]
[367838397,1750941066586,-459.10972175,0.00018904,2]
[367838398,1750941066595,-803.0,0.00018904,2]
[367838399,1750941066604,-460.0,0.00018904,2]
[367838400,1750941066613,-460.0,0.00018904,2]
[367838401,1750941066622,-460.0,0.00018904,2]
[367838402,1750941066632,-566.19,0.00018904,2]
[367838403,1750941066645,-460.0,0.00018904,2]
[367838404,1750941066654,-531.21,0.00018904,2]
[367838405,1750941066663,-460.0,0.00018904,2]
[367838406,1750941066672,-586.58,0.00018904,2]
[367838407,1750941066682,-460.0,0.00018904,2]
[367838408,1750941066691,-460.0,0.00018904,2]
[367838409,1750941066701,-460.0,0.00018904,2]
[367838410,1750941066709,-566.33532962,0.00018904,2]
[367838411,1750941066719,-460.0,0.00018904,2]
[367838412,1750941066729,-1446.03,0.00018904,2]
[367838413,1750941066739,-1888.57,0.00018904,2]
[367838414,1750941066749,-460.0,0.00018904,2]
[367838415,1750941066758,-460.0,0.00018904,2]
[367838416,1750941066768,-2010.83,0.00018904,2]
[367838417,1750941066779,-460.0,0.00018904,2]
[367838418,1750941066789,-460.0,0.00018904,2]
[367838419,1750941066798,-460.0,0.00018904,2]
[367838420,1750941066808,-706.02,0.00018904,2]
[367838421,1750941066819,-460.0,0.00018904,2]
[367838422,1750941066828,-460.0,0.00018904,2]
[367838423,1750941066838,-947.82,0.00018904,2]
[367838424,1750941066847,-686.64,0.00018904,2]
[367838425,1750941066856,-528.25,0.00018904,2]
[367838426,1750941066865,-460.0,0.00018904,2]
[367838427,1750941066875,-460.0,0.00018904,2]
[367838428,1750941066884,-630.9,0.00018904,2]
[367838429,1750941066893,-4731.44,0.00018904,2]
[367838430,1750941066903,-464.51,0.00018904,2]
[367838431,1750941066913,-719.52,0.00018904,2]
[367838432,1750941066923,-460.0,0.00018904,2]
[367838433,1750941066933,-806.15,0.00018904,2]
[367838434,1750941066943,-548.98,0.00018904,2]
[367838435,1750941066957,-460.0,0.00018904,2]
[367838436,1750941066966,-524.3799977,0.00018904,2]
[367838437,1750941066975,-460.0,0.00018904,2]
[367838438,1750941066984,-5800.83,0.00018904,2]
[367838439,1750941066993,-692.44,0.00018904,2]
[367838440,1750941067003,-866.92,0.00018904,2]
[367838441,1750941067012,-460.0,0.00018904,2]
[367838442,1750941067021,-460.0,0.00018904,2]
[367838443,1750941067032,-2909.6,0.00018904,2]
[367838444,1750941067041,-517.95,0.00018904,2]
[367838445,1750941067051,-2686.11,0.00018904,2]
[367838446,1750941067060,-1363.41,0.00018904,2]
[367838447,1750941067069,-3716.07,0.00018904,2]
[367838448,1750941067078,-1046.42,0.00018904,2]
[367838449,1750941067087,-532.34,0.00018904,2]
[367838450,1750941067097,-790.12,0.00018904,2]
[367838451,1750941067107,-1720.1,0.00018904,2]
[367838452,1750941067117,-460.0,0.00018904,2]
[367838453,1750941067128,-607.72,0.00018904,2]
[367838454,1750941067138,-738.59,0.00018904,2]
[367838455,1750941067147,-683.98,0.00018904,2]
[367838456,1750941067157,-563.72,0.00018904,2]
[367838457,1750941067166,-460.0,0.00018904,2]
[367838458,1750941067175,-460.0,0.00018904,2]
[367838459,1750941067184,-460.0,0.00018904,2]
[367838460,1750941067193,-533.75,0.00018904,2]
[367838461,1750941067204,-1868.49,0.00018904,2]
[367838462,1750941067214,-1752.99,0.00018904,2]
[367838463,1750941067223,-761.74,0.00018904,2]
[367838464,1750941067232,-620.54,0.00018904,2]
[367838465,1750941067242,-460.0,0.00018904,2]
[367838466,1750941067252,-570.25,0.00018904,2]
[367838467,1750941067262,-595.56474963,0.00018904,2]
[367838468,1750941067271,-460.0,0.00018904,2]
[367838469,1750941067282,-1048.74,0.00018904,2]
[367838470,1750941067292,-890.8,0.00018904,2]
[367838471,1750941067303,-2024.11,0.00018904,2]
[367838472,1750941067313,-641.16,0.00018904,2]
[367838473,1750941067323,-753.25,0.00018904,2]
[367838474,1750941067332,-560.58,0.00018904,2]
[367838475,1750941067342,-1034.46,0.00018904,2]
[367838476,1750941067351,-510.97,0.00018904,2]
[367838477,1750941067360,-685.54,0.00018904,2]
[367838478,1750941067370,-501.72,0.00018904,2]
[367838479,1750941067379,-594.59,0.00018904,2]
[367838480,1750941067388,-743.6,0.00018904,2]
[367838481,1750941067397,-2173.59,0.00018904,2]
[367838482,1750941067407,-2150.76,0.00018904,2]
[367838483,1750941067417,-603.43,0.00018904,2]
[367838484,1750941067426,-363.98330694,0.00018904,2]
[367838485,1750941067436,-556.94117999,0.00018904,2]
[367838486,1750941067445,-594.3,0.00018904,2]
[367838487,1750941067457,-1345.47,0.00018904,2]
[367838488,1750941067466,-721.39,0.00018904,2]
[367838489,1750941067476,-460.0,0.00018904,2]
[367838490,1750941067486,-460.0,0.00018904,2]
[367838491,1750941067496,-1390.16,0.00018904,2]
[367838492,1750941067505,-885.25,0.00018904,2]
[367838493,1750941067515,-460.0,0.00018904,2]
[367838494,1750941067524,-460.0,0.00018904,2]
[367838495,1750941067534,-460.0,0.00018904,2]
[367838496,1750941067544,-460.0,0.00018904,2]
[367838497,1750941067553,-2659.29,0.00018904,2]
[367838498,1750941067563,-460.0,0.00018904,2]
[367838499,1750941067572,-460.0,0.00018904,2]
[367838500,1750941067582,-2051.31,0.00018904,2]
[367838501,1750941067591,-581.91,0.00018904,2]
[367838502,1750941067600,-479.83,0.00018904,2]
[367838503,1750941067610,-569.65,0.00018904,2]
[367838504,1750941067619,-343.92013248,0.00018904,2]
[367838505,1750941067628,-813.57587216,0.00018961,2]
[367838506,1750941067641,-1502.78026123,0.00018968,2]
[367838507,1750941067650,-500.0,0.00018968,2]
[367838508,1750941067659,-1173.68185765,0.00019,2]
[367838509,1750941067668,-2764.78833449,0.00019107,2]
[367838510,1750941067678,-719.59136496,0.00019113,2]
[367838511,1750941067687,-168.0,0.00019118,2]
[367838512,1750941067695,-1000.0,0.00019168,2]
[367838513,1750941067706,-460.0,0.00019178,2]
[367838514,1750941067717,-460.0,0.00019178,2]
[367838515,1750941067727,-460.0,0.00019178,2]
[367838516,1750941067736,-460.0,0.00019178,2]
[367838517,1750941067745,-460.0,0.00019178,2]
[367838518,1750941067754,-460.0,0.00019178,2]
[367838519,1750941067763,-293.69260426,0.00019178,2]
[367838520,1750941067773,-473.28,0.00019178,2]
[367838521,1750941067782,-460.0,0.00019178,2]
[367838522,1750941067791,-460.0,0.00019178,2]
[367838523,1750941067800,-888.46,0.00019178,2]
[367838524,1750941067809,-791.24,0.00019178,2]
[367838525,1750941067818,-460.0,0.00019178,2]
[367838526,1750941067827,-807.51,0.00019178,2]
[367838527,1750941067836,-460.0,0.00019178,2]
[367838528,1750941067845,-460.0,0.00019178,2]
[367838529,1750941067855,-503.24,0.00019178,2]
[367838530,1750941067864,-631.7,0.00019178,2]
[367838531,1750941067873,-239.42,0.00019178,2]
[367838532,1750941068000,-460.0,0.00019178,2]
[367838533,1750941068010,-742.62,0.00019178,2]
[367838534,1750941068020,-460.0,0.00019178,2]
[367838535,1750941068029,-460.0,0.00019178,2]
[367838536,1750941068038,-460.0,0.00019178,2]
[367838537,1750941068047,-471.26,0.00019178,2]
[367838538,1750941068056,-460.0,0.00019178,2]
[367838539,1750941068066,-460.0,0.00019178,2]
[367838540,1750941068075,-460.0,0.00019178,2]
[367838541,1750941068084,-460.0,0.00019178,2]
[367838542,1750941068093,-218.64055989,0.00019178,2]
[367838543,1750941068102,-803.0,0.00019178,2]
[367838544,1750941068112,-204.51327056,0.00019178,2]
[367838545,1750941068121,-460.0,0.00019178,2]
[367838546,1750941068130,-460.0,0.00019178,2]
[367838547,1750941068139,-566.19,0.00019178,2]
[367838548,1750941068148,-460.0,0.00019178,2]
[367838549,1750941068157,-531.21,0.00019178,2]
[367838550,1750941068167,-460.0,0.00019178,2]
[367838551,1750941068176,-586.58,0.00019178,2]
[367838552,1750941068186,-460.0,0.00019178,2]
[367838553,1750941068196,-460.0,0.00019178,2]
[367838554,1750941068207,-460.0,0.00019178,2]
[367838555,1750941068216,-460.0,0.00019178,2]
[367838556,1750941068225,-1446.03,0.00019178,2]
[367838557,1750941068235,-1888.57,0.00019178,2]
[367838558,1750941068245,-352.46822449,0.00019178,2]
[367838559,1750941068255,-460.0,0.00019178,2]
[367838560,1750941068264,-2010.83,0.00019178,2]
[367838561,1750941068274,-460.0,0.00019178,2]
[367838562,1750941068283,-460.0,0.00019178,2]
[367838563,1750941068293,-460.0,0.00019178,2]
[367838564,1750941068302,-460.0,0.00019178,2]
[367838565,1750941068312,-706.02,0.00019178,2]
[367838566,1750941068321,-460.0,0.00019178,2]
[367838567,1750941068331,-947.82,0.00019178,2]
[367838568,1750941068341,-686.64,0.00019178,2]
[367838569,1750941068351,-528.25,0.00019178,2]
[367838570,1750941068360,-460.0,0.00019178,2]
[367838571,1750941068370,-460.0,0.00019178,2]
[367838572,1750941068379,-630.9,0.00019178,2]
[367838573,1750941068389,-4731.44,0.00019178,2]
[367838574,1750941068399,-464.51,0.00019178,2]
[367838575,1750941068408,-719.52,0.00019178,2]
[367838576,1750941068417,-460.0,0.00019178,2]
[367838577,1750941068427,-806.15,0.00019178,2]
[367838578,1750941068436,-548.98,0.00019178,2]
[367838579,1750941068445,-460.0,0.00019178,2]
[367838580,1750941068455,-460.0,0.00019178,2]
[367838581,1750941068465,-5800.83,0.00019178,2]
[367838582,1750941068474,-692.44,0.00019178,2]
[367838583,1750941068484,-866.92,0.00019178,2]
[367838584,1750941068494,-460.0,0.00019178,2]
[367838585,1750941068503,-460.0,0.00019178,2]
[367838586,1750941068513,-2909.6,0.00019178,2]
[367838587,1750941068524,-517.95,0.00019178,2]
[367838588,1750941068533,-2686.11,0.00019178,2]
[367838589,1750941068543,-1363.41,0.00019178,2]
[367838590,1750941068552,-3716.07,0.00019178,2]
[367838591,1750941068563,-1046.42,0.00019178,2]
[367838592,1750941068572,-532.34,0.00019178,2]
[367838593,1750941068582,-790.12,0.00019178,2]
[367838594,1750941068591,-1720.1,0.00019178,2]
[367838595,1750941068601,-460.0,0.00019178,2]
[367838596,1750941068611,-607.72,0.00019178,2]
[367838597,1750941068621,-738.59,0.00019178,2]
[367838598,1750941068631,-683.98,0.00019178,2]
[367838599,1750941068642,-460.0,0.00019178,2]
[367838600,1750941068652,-460.0,0.00019178,2]
[367838601,1750941068661,-460.0,0.00019178,2]
[367838602,1750941068672,-533.75,0.00019178,2]
[367838603,1750941068682,-1752.99,0.00019178,2]
[367838604,1750941068692,-1868.49,0.00019178,2]
[367838605,1750941068701,-761.74,0.00019178,2]
[367838606,1750941068711,-620.54,0.00019178,2]
[367838607,1750941068720,-571.21374541,0.00019178,2]
[367838608,1750941068730,-570.25,0.00019178,2]
[367838609,1750941068740,-460.0,0.00019178,2]
[367838610,1750941068749,-1048.74,0.00019178,2]
[367838611,1750941068759,-890.8,0.00019178,2]
[367838612,1750941068769,-2024.11,0.00019178,2]
[367838613,1750941068779,-641.16,0.00019178,2]
[367838614,1750941068788,-753.25,0.00019178,2]
[367838615,1750941068799,-560.58,0.00019178,2]
[367838616,1750941068810,-510.97,0.00019178,2]
[367838617,1750941068819,-1034.46,0.00019178,2]
[367838618,1750941068827,-685.54,0.00019178,2]
[367838619,1750941068837,-501.72,0.00019178,2]
[367838620,1750941068846,-594.59,0.00019178,2]
[367838621,1750941068856,-743.6,0.00019178,2]
[367838622,1750941068865,-2173.59,0.00019178,2]
[367838623,1750941068875,-2150.76,0.00019178,2]
[367838624,1750941068884,-603.43,0.00019178,2]
[367838625,1750941068893,-594.3,0.00019178,2]